bitfinex/quotes_SOLUSD_20240727
["timestamp","ask_amount","ask_price","bid_price","bid_amount"]
[1722073641503,12.34,186.88,186.81,12.34]
[1722073643409,12.34,186.89,186.83,12.34]
[1722073644412,13.67720562,186.89,186.83,12.34]
[1722073644711,13.67720562,186.89,186.82,12.34]
[1722073645007,17.691,186.88,186.81,12.34]
[1722073645200,12.34,186.84,186.78,12.34]
[1722073646117,12.34,186.84,186.77,12.34]
[1722073646994,12.34,186.84,186.78,12.34]
[1722073648595,12.34,186.84,186.73,15.3597]
[1722073648596,13.67720562,186.83,186.73,15.3597]
[1722073648797,13.67720562,186.83,186.76,12.34]
[1722073648798,12.34,186.83,186.76,12.34]
[1722073649207,12.34,186.83,186.77,12.34]
[1722073649514,13.67720562,186.83,186.77,12.34]
[1722073649718,1.33720562,186.82,186.77,12.34]
[1722073650125,1.33720562,186.82,186.76,12.34]
[1722073650621,13.67720562,186.83,186.76,12.34]
[1722073651597,28.6933,186.81,186.69,16.3257]
[1722073651801,13.67720562,186.8,186.69,16.3257]
[1722073652006,1.33720562,186.79,186.73,12.34]
[1722073654402,12.34,186.8,186.73,12.34]
[1722073654724,1.33720562,186.79,186.73,12.34]
[1722073655114,12.34,186.8,186.73,12.34]
[1722073655926,1.33720562,186.79,186.74,12.34]
[1722073656303,12.34,186.8,186.74,12.34]
[1722073656803,34.0464,186.81,186.69,16.3257]
[1722073657002,34.0464,186.81,186.74,12.34]
[1722073657620,16.3533,186.81,186.74,12.34]
[1722073657813,28.6933,186.81,186.74,12.34]
[1722073658611,1.33720562,186.8,186.74,12.34]
[1722073658795,1.33720562,186.8,186.75,12.34]
[1722073659000,1.33720562,186.8,186.74,12.34]
[1722073659411,28.6933,186.81,186.74,12.34]
[1722073659617,13.67720562,186.8,186.73,12.34]
[1722073659803,12.34,186.78,186.72,12.34]
[1722073660214,12.34,186.78,186.71,12.34]
[1722073662235,12.34,186.77,186.71,12.34]
[1722073666135,12.34,186.77,186.68,0.7993847]
[1722073666136,12.34,186.77,186.7,12.34]
[1722073666814,12.34,186.77,186.71,12.34]
[1722073667432,5.3533,186.8,186.71,12.34]
[1722073667638,12.34,186.78,186.71,12.34]
[1722073670038,17.6937,186.79,186.73,12.34]
[1722073670335,21.7063,186.81,186.76,12.34]
[1722073670913,5.3534,186.8,186.74,12.34]
[1722073671534,5.3534,186.8,186.75,12.34]
[1722073672238,34.0463,186.81,186.75,12.34]
[1722073672534,34.0463,186.81,186.74,12.34]
[1722073672935,16.3533,186.81,186.78,12.34]
[1722073674031,16.3533,186.81,186.77,12.34]
[1722073674235,16.3533,186.81,186.76,12.34]
[1722073674422,16.3533,186.81,186.75,12.34]
[1722073674624,28.6933,186.81,186.75,12.34]
[1722073675029,16.3533,186.81,186.76,13.41076894]
[1722073675239,16.3533,186.81,186.76,12.34]
[1722073679934,16.3533,186.81,186.75,12.34]
[1722073680133,16.3533,186.81,186.76,12.34]
[1722073683056,12.34,186.78,186.71,12.34]
[1722073683348,12.34,186.76,186.7,12.34]
[1722073683926,12.34,186.76,186.68,0.7993847]
[1722073684127,12.34,186.72,186.68,0.7993847]
[1722073686126,12.34,186.73,186.68,0.7993847]
[1722073687148,28.4064,186.74,186.68,0.7993847]
[1722073688260,12.34,186.73,186.68,0.7993847]
[1722073694959,28.4064,186.74,186.68,1.87066944]
[1722073695147,16.0664,186.74,186.69,12.34]
[1722073695457,12.34,186.76,186.69,12.34]
[1722073696837,17.94503727,186.77,186.7,12.34]
[1722073697752,12.34,186.77,186.7,12.34]
[1722073698154,27.72,186.78,186.71,12.34]
[1722073699560,33.0739,186.78,186.71,12.34]
[1722073699762,12.34,186.77,186.71,12.34]
[1722073700064,27.72,186.78,186.71,12.34]
[1722073701255,12.34,186.77,186.71,12.34]
[1722073702668,12.34,186.76,186.68,52.0811847]
[1722073702872,20.7339,186.78,186.69,12.34]
[1722073703043,12.34,186.77,186.7,57.34]
[1722073703349,12.34,186.77,186.7,12.34]
[1722073705562,12.34,186.76,186.68,7.0811847]
[1722073705858,12.34,186.75,186.69,1.07116337]
[1722073706066,15.38,186.78,186.71,12.34]
[1722073706360,12.34,186.77,186.71,12.34]
[1722073706551,12.34,186.75,186.69,12.34]
[1722073707247,12.34,186.76,186.69,12.34]
[1722073711665,12.34,186.74,186.68,0.7993847]
[1722073712369,12.34,186.75,186.68,13.1393847]
[1722073712677,5.3545,186.76,186.68,13.1393847]
[1722073712981,12.34,186.75,186.68,13.1393847]
[1722073713875,12.34,186.74,186.68,0.7993847]
[1722073715081,12.34,186.74,186.68,1.87058993]
[1722073717379,12.34,186.74,186.68,0.7993847]
[1722073718281,5.3545,186.76,186.68,0.7993847]
[1722073718475,12.34,186.74,186.68,0.7993847]
[1722073724787,13.67720562,186.73,186.68,0.7993847]
[1722073724953,12.34,186.72,186.68,0.7993847]
[1722073725979,12.34,186.74,186.68,13.1393847]
[1722073726377,12.34,186.75,186.68,13.1393847]
[1722073729685,17.6948,186.75,186.68,13.1393847]
[1722073732283,12.34,186.74,186.68,13.1393847]
[1722073732458,12.34,186.74,186.68,0.7993847]
[1722073733378,12.34,186.74,186.68,1.87060255]
[1722073734473,12.34,186.74,186.68,0.7993847]
[1722073737886,12.34,186.73,186.68,0.7993847]
[1722073738087,13.67720562,186.73,186.68,0.7993847]
[1722073738265,12.34,186.73,186.68,0.7993847]
[1722073740185,19.03250562,186.73,186.68,0.7993847]
[1722073740363,12.34,186.72,186.68,0.7993847]
[1722073740677,12.34,186.69,186.68,0.7993847]
[1722073740860,12.34,186.71,186.68,0.7993847]
[1722073742384,13.67720562,186.7,186.68,0.7993847]
[1722073742591,20.9803,186.72,186.68,0.7993847]
[1722073742772,12.34,186.71,186.68,0.7993847]
[1722073746875,1.33720562,186.7,186.68,0.7993847]
[1722073747281,12.34,186.7,186.68,0.7993847]
[1722073748500,12.34,186.71,186.68,0.7993847]
[1722073751696,12.34,186.7,186.68,0.7993847]
[1722073753093,5.3564,186.69,186.68,0.7993847]
[1722073753303,17.6964,186.69,186.68,0.7993847]
[1722073753677,12.34,186.69,186.68,0.7993847]
[1722073756098,12.34,186.7,186.68,0.7993847]
[1722073756692,12.34,186.69,186.68,0.7993847]
[1722073756901,19.03360562,186.69,186.68,0.7993847]
[1722073758197,12.34,186.7,186.68,0.7993847]
[1722073758402,12.34,186.71,186.68,0.7993847]
[1722073758788,19.03330562,186.71,186.68,0.7993847]
[1722073759380,17.6961,186.71,186.68,0.7993847]
[1722073759582,19.03330562,186.71,186.68,0.7993847]
[1722073760407,17.6961,186.71,186.68,0.7993847]
[1722073760580,19.03330562,186.71,186.68,0.7993847]
[1722073760783,17.6961,186.71,186.68,0.7993847]
[1722073760984,12.34,186.7,186.68,0.7993847]
[1722073761199,1.33720562,186.69,186.68,0.7993847]
[1722073761687,12.34,186.7,186.68,0.7993847]
[1722073763987,12.34,186.69,186.68,0.7993847]
[1722073767098,12.34,186.7,186.68,0.7993847]
[1722073767910,13.67720562,186.7,186.68,0.7993847]
[1722073768308,12.34,186.7,186.68,0.7993847]
[1722073771009,17.6962,186.7,186.68,0.7993847]
[1722073771309,12.34,186.69,186.68,0.7993847]
[1722073775215,17.6964,186.69,186.68,0.7993847]
[1722073775512,19.03360562,186.69,186.68,0.7993847]
[1722073776301,13.67720562,186.69,186.68,0.7993847]
[1722073776917,19.03360562,186.69,186.68,0.7993847]
[1722073777495,13.67720562,186.69,186.68,0.7993847]
[1722073777695,12.34,186.69,186.68,0.7993847]
[1722073779525,17.6964,186.69,186.68,0.7993847]
[1722073779819,5.3573,186.66,186.59,12.34]
[1722073780000,1.33720562,186.65,186.59,12.34]
[1722073780425,12.34,186.66,186.59,12.34]
[1722073780597,12.34,186.66,186.58,34.6359]
[1722073781005,12.34,186.66,186.59,12.34]
[1722073781730,17.6973,186.66,186.59,12.34]
[1722073781904,19.03450562,186.66,186.58,34.6359]
[1722073782929,17.6973,186.66,186.58,34.6359]
[1722073783427,1.33720562,186.65,186.58,34.6359]
[1722073783625,17.6973,186.66,186.59,12.34]
[1722073784231,12.34,186.66,186.59,12.34]
[1722073784426,6.91959832,186.69,186.61,12.34]
[1722073784736,12.34,186.67,186.6,12.34]
[1722073785434,6.91959832,186.69,186.61,12.34]
[1722073785612,12.34,186.68,186.61,12.34]
[1722073785932,13.90309832,186.69,186.62,12.34]
[1722073786832,19.25959832,186.69,186.62,12.34]
[1722073788110,1.56309832,186.69,186.64,12.34]
[1722073788313,1.56309832,186.69,186.65,12.34]
[1722073788512,33.3203,186.72,186.65,12.34]
[1722073789336,27.9647,186.72,186.65,12.34]
[1722073790333,6.93985502,186.75,186.67,12.34]
[1722073790334,5.6026494,186.75,186.67,12.34]
[1722073790511,5.355,186.74,186.67,12.34]
[1722073790718,22.98730562,186.77,186.66,45.0]
[1722073790719,13.67720562,186.73,186.66,12.34]
[1722073790939,5.3556,186.72,186.66,12.34]
[1722073791842,12.34,186.73,186.66,12.34]
[1722073792445,17.6953,186.73,186.66,12.34]
[1722073792622,17.6953,186.73,186.67,12.34]
[1722073793135,2.90030394,186.76,186.68,12.34]
[1722073793335,13.90309832,186.76,186.69,12.34]
[1722073793839,6.91749832,186.76,186.69,12.34]
[1722073794042,13.90309832,186.76,186.69,12.34]
[1722073797241,19.25759832,186.76,186.69,12.34]
[1722073799043,12.34,186.72,186.6,6.1662]
[1722073799346,12.34,186.71,186.64,12.34]
[1722073800330,13.67720562,186.7,186.63,12.34]
[1722073800724,12.34,186.7,186.63,12.34]
[1722073801230,17.6964,186.7,186.63,12.34]
[1722073801632,19.03360562,186.7,186.63,12.34]
[1722073801831,17.6964,186.7,186.63,12.34]
[1722073802027,12.34,186.7,186.63,12.34]
[1722073802542,17.6962,186.7,186.63,12.34]
[1722073802733,17.6962,186.7,186.6,6.1662]
[1722073802934,17.6962,186.7,186.63,12.34]
[1722073804140,12.34,186.69,186.63,12.34]
[1722073804355,17.6964,186.69,186.63,12.34]
[1722073804648,21.8613,186.71,186.63,12.34]
[1722073804840,23.19850562,186.71,186.63,12.34]
[1722073805042,1.33720562,186.7,186.63,12.34]
[1722073805231,5.3562,186.7,186.6,6.1662]
[1722073805436,5.3562,186.7,186.63,12.34]
[1722073805750,23.19830562,186.71,186.63,12.34]
[1722073806845,12.34,186.68,186.61,57.34]
[1722073807340,1.33720562,186.67,186.61,57.34]
[1722073807547,13.67720562,186.68,186.61,57.34]
[1722073807737,13.67720562,186.68,186.61,12.34]
[1722073809253,12.34,186.69,186.62,12.34]
[1722073810653,22.11318282,186.71,186.65,12.34]
[1722073810836,16.5052,186.71,186.65,12.34]
[1722073812458,28.8452,186.71,186.65,12.34]
[1722073813151,16.5052,186.71,186.65,12.34]
[1722073814147,16.5052,186.71,186.66,12.34]
[1722073814348,16.5052,186.71,186.67,12.34]
[1722073815159,16.5052,186.71,186.66,12.34]
[1722073817855,16.5052,186.71,186.62,6.0641]
[1722073818059,16.5052,186.71,186.65,12.34]
[1722073818257,28.8452,186.71,186.64,12.34]
[1722073818438,34.2011,186.71,186.64,12.34]
[1722073820166,21.8611,186.71,186.64,12.34]
[1722073820661,34.2011,186.71,186.64,12.34]
[1722073820964,28.8452,186.71,186.64,12.34]
[1722073822077,12.34,186.7,186.63,57.34]
[1722073823146,12.34,186.7,186.64,12.34]
[1722073823458,16.5052,186.71,186.63,45.0]
[1722073823459,16.5052,186.71,186.67,12.34]
[1722073823667,5.60453511,186.75,186.68,1.07123371]
[1722073823851,5.60453511,186.75,186.68,12.34]
[1722073823852,12.34,186.74,186.68,12.34]
[1722073824055,12.34,186.74,186.67,12.34]
[1722073826375,5.60453511,186.75,186.68,57.34]
[1722073826562,12.34,186.74,186.67,12.34]
[1722073826763,12.34,186.73,186.68,45.0]
[1722073826971,12.34,186.73,186.67,12.34]
[1722073828277,12.34,186.74,186.67,12.34]
[1722073828458,5.60453511,186.75,186.69,12.34]
[1722073828653,17.25559832,186.76,186.7,1.07108882]
[1722073828969,29.59559832,186.76,186.69,12.34]
[1722073830282,17.25559832,186.76,186.7,12.34]
[1722073830579,15.6925,186.76,186.71,12.34]
[1722073830764,12.34,186.78,186.71,12.34]
[1722073831153,12.34,186.77,186.71,12.34]
[1722073831350,12.34,186.76,186.7,45.0]
[1722073831573,12.34,186.75,186.69,12.34]
[1722073832355,5.3541,186.78,186.69,12.34]
[1722073832563,12.34,186.77,186.7,57.34]
[1722073833063,12.34,186.76,186.69,12.34]
[1722073833387,17.6945,186.76,186.69,12.34]
[1722073833557,12.34,186.75,186.68,12.34]
[1722073833871,12.34,186.75,186.69,45.0]
[1722073834777,13.67720562,186.75,186.69,45.0]
[1722073834991,12.34,186.75,186.69,45.0]
[1722073835283,12.34,186.76,186.69,57.34]
[1722073835581,13.67720562,186.76,186.69,57.34]
[1722073835762,12.34,186.75,186.68,12.34]
[1722073835966,12.34,186.74,186.67,12.34]
[1722073836164,12.34,186.74,186.68,45.0]
[1722073836364,12.34,186.74,186.67,12.34]
[1722073836581,12.34,186.73,186.66,12.34]
[1722073836766,12.34,186.73,186.67,45.0]
[1722073837281,12.34,186.71,186.6,6.4285]
[1722073837470,12.34,186.71,186.64,12.34]
[1722073838193,16.3032,186.74,186.65,12.34]
[1722073838365,12.34,186.72,186.65,12.34]
[1722073841093,12.34,186.72,186.66,12.34]
[1722073845799,16.3032,186.74,186.66,12.34]
[1722073846006,28.6432,186.74,186.67,12.34]
[1722073846201,28.6432,186.74,186.68,12.34]
[1722073847391,16.3032,186.74,186.69,45.0]
[1722073847878,16.3032,186.74,186.69,57.34]
[1722073848080,16.3032,186.74,186.7,12.34]
[1722073848285,5.60433743,186.75,186.7,12.34]
[1722073848500,5.60433743,186.75,186.71,12.34]
[1722073849279,17.6941,186.77,186.71,12.34]
[1722073849480,17.6941,186.77,186.7,13.41103217]
[1722073850406,5.3544,186.76,186.7,13.41103217]
[1722073851913,17.6942,186.77,186.71,45.0]
[1722073853108,5.3542,186.77,186.71,57.34]
[1722073853802,5.3545,186.76,186.71,57.34]
[1722073854004,12.34,186.74,186.67,12.34]
[1722073854185,17.6953,186.73,186.68,45.0]
[1722073854586,12.34,186.73,186.68,45.0]
[1722073854784,17.6951,186.74,186.68,45.0]
[1722073856213,17.6953,186.73,186.68,45.0]
[1722073856391,12.34,186.73,186.68,45.0]
[1722073857112,17.6953,186.73,186.67,12.34]
[1722073857304,17.6953,186.73,186.66,12.34]
[1722073857305,5.3553,186.73,186.66,12.34]
[1722073857520,5.3547,186.75,186.68,12.34]
[1722073857692,17.6947,186.75,186.68,12.34]
[1722073857893,17.695,186.74,186.67,57.34]
[1722073858389,17.695,186.74,186.67,45.0]
[1722073858590,17.695,186.74,186.61,21.7902]
[1722073858591,17.6953,186.73,186.61,21.7902]
[1722073858795,17.6953,186.73,186.66,12.34]
[1722073859198,17.6953,186.73,186.62,65.0]
[1722073859397,12.34,186.73,186.66,12.34]
[1722073859904,17.6953,186.73,186.66,12.34]
[1722073860300,1.33720562,186.72,186.66,12.34]
[1722073860890,12.34,186.73,186.66,12.34]
[1722073861086,5.3547,186.75,186.62,65.0]
[1722073861292,12.34,186.75,186.68,12.34]
[1722073861914,12.34,186.77,186.7,12.34]
[1722073862113,12.34,186.77,186.71,12.34]
[1722073862293,28.9621,186.78,186.72,45.0]
[1722073864012,12.34,186.76,186.7,12.34]
[1722073864214,12.34,186.75,186.69,12.34]
[1722073864518,17.6951,186.74,186.68,12.34]
[1722073864717,17.6951,186.74,186.67,12.34]
[1722073864718,12.34,186.74,186.67,12.34]
[1722073866020,12.34,186.73,186.63,0.80570845]
[1722073866323,12.34,186.72,186.65,12.34]
[1722073866533,12.34,186.72,186.66,45.0]
[1722073866711,12.34,186.72,186.57,712.2948]
[1722073866712,12.34,186.7,186.57,712.2948]
[1722073866907,12.34,186.69,186.62,12.34]
[1722073867308,17.6966,186.69,186.62,12.34]
[1722073867916,5.3567,186.68,186.62,12.34]
[1722073869318,15.4303,186.71,186.63,57.34]
[1722073869526,15.4303,186.71,186.64,1.07145391]
[1722073869826,5.3562,186.7,186.64,12.34]
[1722073870027,33.1262,186.71,186.64,12.34]
[1722073870822,33.1262,186.71,186.65,45.0]
[1722073871027,5.3563,186.7,186.65,45.0]
[1722073871230,5.3563,186.7,186.64,12.34]
[1722073873131,17.6963,186.7,186.64,12.34]
[1722073873934,12.34,186.7,186.64,12.34]
[1722073874137,12.34,186.7,186.63,12.34]
[1722073875134,5.3567,186.68,186.63,12.34]
[1722073875442,5.3567,186.68,186.58,1.07139629]
[1722073875443,5.3571,186.67,186.62,12.34]
[1722073876338,5.3568,186.68,186.62,12.34]
[1722073877317,5.3568,186.68,186.63,46.07149677]
[1722073878137,5.3568,186.68,186.63,45.0]
[1722073878733,5.3568,186.68,186.63,57.34]
[1722073879439,17.6965,186.69,186.63,57.34]
[1722073879619,5.3565,186.69,186.64,1.0714223]
[1722073879818,15.4303,186.71,186.65,12.34]
[1722073880027,15.4303,186.71,186.66,57.34]
[1722073880227,15.4303,186.71,186.67,12.34]
[1722073881027,15.4303,186.71,186.66,12.34]
[1722073881342,15.4303,186.71,186.67,45.0]
[1722073881715,15.4303,186.71,186.66,45.0]
[1722073882939,21.02975548,186.76,186.66,57.34]
[1722073883130,12.34,186.73,186.67,12.34]
[1722073883332,12.34,186.73,186.68,45.0]
[1722073884949,5.3552,186.74,186.68,45.0]
[1722073885127,17.6947,186.75,186.68,57.34]
[1722073886426,5.3547,186.75,186.68,57.34]
[1722073886743,15.4252,186.76,186.69,12.34]
[1722073886951,5.60385768,186.78,186.73,12.34]
[1722073887238,21.8121,186.82,186.68,45.34]
[1722073887239,28.0172,186.82,186.75,12.34]
[1722073887440,5.60201913,186.81,186.76,13.41066805]
[1722073887639,5.60201913,186.81,186.77,1.07067107]
[1722073888226,5.60201913,186.81,186.77,13.41067107]
[1722073888422,5.60201913,186.81,186.78,57.34]
[1722073888628,12.34,186.84,186.79,1.0705612]
[1722073888822,12.34,186.84,186.79,45.0]
[1722073889027,17.693,186.82,186.75,12.34]
[1722073889243,12.34,186.81,186.76,45.0]
[1722073889441,17.693,186.81,186.75,45.0]
[1722073889646,12.34,186.78,186.75,45.0]
[1722073889819,12.34,186.78,186.71,12.34]
[1722073890022,12.34,186.78,186.72,45.0]
[1722073890430,12.34,186.78,186.72,57.34]
[1722073890630,12.34,186.77,186.67,1.07082489]
[1722073890842,12.34,186.77,186.69,12.34]
[1722073890843,12.34,186.76,186.69,12.34]
[1722073891048,12.34,186.77,186.71,12.34]
[1722073891350,28.0172,186.78,186.71,13.41085266]
[1722073891527,12.34,186.76,186.7,12.34]
[1722073891724,12.34,186.74,186.68,12.34]
[1722073891933,12.34,186.74,186.62,1.07098398]
[1722073891934,12.34,186.73,186.62,1.07098398]
[1722073892145,12.34,186.72,186.65,12.34]
[1722073892345,12.34,186.71,186.65,12.34]
[1722073892550,5.3553,186.73,186.65,12.34]
[1722073892757,12.34,186.71,186.65,12.34]
[1722073892929,12.34,186.72,186.65,12.34]
[1722073893747,12.34,186.72,186.66,45.0]
[1722073894256,12.34,186.72,186.66,57.34]
[1722073895150,12.34,186.73,186.67,12.34]
[1722073895652,17.695,186.74,186.67,12.34]
[1722073895951,12.34,186.74,186.68,45.0]
[1722073896332,17.6948,186.75,186.68,57.34]
[1722073897159,5.355,186.74,186.68,57.34]
[1722073897335,17.695,186.74,186.68,45.0]
[1722073898334,12.34,186.74,186.68,45.0]
[1722073898535,17.6947,186.75,186.68,57.34]
[1722073899152,5.355,186.74,186.68,57.34]
[1722073899452,17.695,186.74,186.68,45.0]
[1722073901362,17.6953,186.73,186.68,45.0]
[1722073901543,17.6953,186.73,186.67,45.0]
[1722073903054,5.3556,186.72,186.67,45.0]
[1722073903259,17.6959,186.71,186.64,12.34]
[1722073903461,17.6959,186.71,186.65,45.0]
[1722073903849,12.34,186.71,186.65,45.0]
[1722073904162,17.6951,186.74,186.67,12.34]
[1722073904363,17.6951,186.74,186.68,45.0]
[1722073904750,12.34,186.74,186.68,45.0]
[1722073905262,17.695,186.74,186.68,45.0]
[1722073906561,12.34,186.74,186.68,45.0]
[1722073907360,17.695,186.74,186.68,45.0]
[1722073909368,12.34,186.74,186.68,45.0]
[1722073910168,17.695,186.74,186.68,45.0]
[1722073913857,21.27949197,186.78,186.69,12.34]
[1722073914175,17.6944,186.76,186.7,45.0]
[1722073915955,12.34,186.76,186.7,45.0]
[1722073916161,12.34,186.73,186.65,12.34]
[1722073916469,12.34,186.72,186.66,45.0]
[1722073916667,17.6953,186.73,186.66,57.34]
[1722073918670,12.34,186.71,186.66,45.0]
[1722073918875,17.6961,186.71,186.65,45.0]
[1722073919255,17.6962,186.7,186.63,12.34]
[1722073920579,12.34,186.7,186.64,45.0]
[1722073921158,12.34,186.69,186.64,45.0]
[1722073921357,12.34,186.69,186.63,45.0]
[1722073921553,12.34,186.7,186.64,12.34]
[1722073921774,12.34,186.7,186.65,45.0]
[1722073923579,5.3555,186.73,186.65,57.34]
[1722073923789,12.34,186.72,186.66,12.34]
[1722073923962,12.34,186.72,186.67,45.0]
[1722073927588,17.6956,186.72,186.67,45.0]
[1722073928382,12.0879453,186.75,186.58,1.07122197]
[1722073928383,12.34,186.68,186.58,1.07122197]
[1722073928681,12.34,186.68,186.61,12.34]
[1722073929083,12.34,186.69,186.62,12.34]
[1722073929696,5.3562,186.7,186.58,1.07122197]
[1722073929697,1.33720562,186.74,186.64,21.3678]
[1722073929884,5.5946453,186.75,186.7,12.34]
[1722073930069,5.5946453,186.75,186.71,45.0]
[1722073930887,17.9346453,186.75,186.68,12.34]
[1722073931090,12.34,186.72,186.65,12.34]
[1722073931307,12.34,186.71,186.66,45.0]
[1722073933493,12.34,186.72,186.66,45.0]
[1722073934491,12.34,186.72,186.67,1.07118296]
[1722073934672,17.9346453,186.75,186.68,13.41112039]
[1722073934878,5.5946453,186.75,186.69,57.34]
[1722073936487,5.5946453,186.75,186.7,13.41097821]
[1722073936678,5.5946453,186.75,186.71,46.07095159]
[1722073937396,5.5946453,186.75,186.71,57.34]
[1722073937585,5.5946453,186.75,186.72,12.34]
[1722073937768,5.5946453,186.75,186.73,45.0]
[1722073938391,5.5946453,186.75,186.72,45.0]
[1722073938599,5.5946453,186.75,186.72,57.34]
[1722073938895,17.6938,186.78,186.72,57.34]
[1722073939394,12.34,186.77,186.72,45.0]
[1722073939595,5.3544,186.76,186.71,45.0]
[1722073940299,17.6942,186.77,186.71,45.0]
[1722073941311,17.6939,186.78,186.71,57.34]
[1722073941781,5.3539,186.78,186.72,13.41082922]
[1722073941982,5.3539,186.78,186.73,45.0]
[1722073942706,17.6939,186.78,186.73,45.0]
[1722073942887,17.695,186.75,186.68,12.34]
[1722073943201,5.3556,186.72,186.65,1.07083051]
[1722073943398,17.6956,186.72,186.66,12.34]
[1722073943598,17.6956,186.72,186.65,12.34]
[1722073944901,5.3559,186.71,186.66,45.0]
[1722073945486,17.6956,186.72,186.66,45.0]
[1722073946305,17.6956,186.72,186.66,57.34]
[1722073946995,17.6956,186.72,186.66,56.84]
[1722073947184,17.6956,186.72,186.66,44.5]
[1722073947583,15.2741,186.79,186.67,12.34]
[1722073947789,17.6944,186.76,186.69,12.34]
[1722073948086,17.6944,186.76,186.66,44.5]
[1722073948087,17.6947,186.75,186.68,12.34]
[1722073948707,5.3547,186.75,186.68,13.41104428]
[1722073948902,17.6947,186.75,186.68,13.41104428]
[1722073949321,17.6947,186.75,186.69,45.0]
[1722073951814,5.3551,186.74,186.69,45.0]
[1722073951998,17.6951,186.74,186.69,45.0]
[1722073952195,17.6955,186.73,186.69,45.0]
[1722073952389,17.6955,186.73,186.66,12.34]
[1722073952590,17.6955,186.73,186.67,45.0]
[1722073953695,17.6955,186.73,186.66,45.0]
[1722073953899,12.34,186.73,186.66,57.34]
[1722073954223,12.34,186.73,186.67,12.34]
[1722073954398,12.34,186.74,186.68,45.0]
[1722073955111,5.59571687,186.78,186.69,12.34]
[1722073955316,12.34,186.76,186.7,45.0]
[1722073955498,17.6944,186.76,186.7,45.0]
[1722073955694,17.6948,186.75,186.7,45.0]
[1722073956006,17.6948,186.75,186.69,45.0]
[1722073956922,12.34,186.74,186.69,45.0]
[1722073957089,12.34,186.74,186.68,45.0]
[1722073959711,17.6951,186.74,186.68,45.0]
[1722073960319,5.3547,186.76,186.68,58.4111272]
[1722073960499,17.6947,186.75,186.68,57.34]
[1722073962115,25.3544,186.77,186.7,12.34]
[1722073962325,37.6944,186.77,186.71,45.0]
[1722073962515,17.6944,186.76,186.71,45.0]
[1722073962817,17.6944,186.76,186.7,45.0]
[1722073964222,12.34,186.75,186.7,45.0]
[1722073964516,12.34,186.75,186.69,45.0]
[1722073965008,17.6944,186.76,186.69,57.34]
[1722073965618,20.0,186.77,186.7,12.34]
[1722073965800,32.34,186.77,186.71,45.0]
[1722073966716,32.34,186.77,186.71,57.34]
[1722073966917,12.34,186.77,186.71,57.34]
[1722073967225,23.28981687,186.78,186.71,57.34]
[1722073967695,5.59571687,186.78,186.72,34.341]
[1722073967900,1.33720562,186.85,186.72,34.341]